bitfinex-derivatives/quotes_ETHF0:USTF0_20260223
["timestamp","ask_amount","ask_price","bid_price","bid_amount"]
[1771824189288,0.56974208,1867.9,1867.5,4.4749424]
[1771824189490,0.56974208,1867.9,1867.5,0.57674691]
[1771824190190,0.56974208,1867.9,1867.5,0.0043798]
[1771824191291,0.56974208,1867.9,1867.5,0.57674691]
[1771824199390,0.00640916,1868.0,1867.5,0.57674691]
[1771824199591,0.60283378,1868.0,1867.7,1.83453821]
[1771824199796,0.60283378,1868.0,1867.7,2.40817033]
[1771824200097,0.59642462,1868.4,1867.8,0.57363212]
[1771824200287,0.59642462,1868.2,1867.8,0.57363212]
[1771824201299,0.60094243,1868.2,1867.8,0.57363212]
[1771824201497,0.00451781,1868.2,1867.8,0.57363212]
[1771824201699,0.59642462,1868.4,1868.0,0.57363212]
[1771824202599,0.60305982,1868.4,1868.0,0.57363212]
[1771824208398,1.83453821,1868.2,1867.7,0.57363212]
[1771824208603,1.83453821,1868.2,1867.6,0.6100977]
[1771824209502,0.00152564,1868.1,1867.6,0.6100977]
[1771824213200,0.00152564,1868.1,1867.5,0.62139923]
[1771824218508,1.83453821,1868.1,1867.5,0.62139923]
[1771824218708,1.83453821,1867.9,1867.5,0.62139923]
[1771824219107,1.83453821,1868.1,1867.5,0.62139923]
[1771824221512,1.83453821,1867.9,1867.4,0.62627929]
[1771824221711,0.57006688,1867.8,1867.4,0.02384922]
[1771824221902,0.57006688,1867.8,1867.0,0.57363212]
[1771824222505,0.57006688,1867.8,1867.0,0.58028156]
[1771824225805,0.56895254,1868.0,1867.6,0.57363212]
[1771824230015,0.56895254,1868.0,1867.4,0.5866853]
[1771824230221,0.57285633,1867.9,1867.3,0.5866853]
[1771824235916,0.57285633,1867.9,1867.0,1.84118765]
[1771824236121,0.57285633,1867.9,1867.0,0.00664944]
[1771824236122,0.57981912,1867.3,1867.0,0.00664944]
[1771824236322,0.57981912,1867.3,1866.9,0.5866853]
[1771824237221,0.57981912,1867.3,1866.9,0.5935635]
[1771824237418,0.5842855,1867.6,1867.1,0.5866853]
[1771824237620,0.5842855,1867.7,1867.1,0.5866853]
[1771824238624,0.58466364,1867.5,1866.9,0.0068782]
[1771824238924,0.58466364,1867.3,1866.9,0.5935635]
[1771824239125,0.58466364,1867.3,1866.8,0.5866853]
[1771824239623,0.58466364,1867.3,1866.9,2.45373991]
[1771824240127,0.58466364,1867.3,1866.9,2.45987573]
[1771824240328,0.58466364,1867.3,1866.9,3.04656103]
[1771824240528,4.4595593,1867.6,1867.0,0.5866853]
[1771824240826,9.09534153,1867.5,1867.0,0.5866853]
[1771824241017,8.52656774,1867.4,1867.0,0.5866853]
[1771824241218,0.56913454,1867.4,1867.0,0.5866853]
[1771824242929,0.57716862,1867.5,1867.0,0.5866853]
[1771824243621,6.56186751,1867.8,1867.0,0.5866853]
[1771824243622,0.57762427,1867.7,1867.0,0.5866853]
[1771824243827,9.09761697,1867.6,1867.0,0.5866853]
[1771824244027,0.57762427,1867.6,1867.0,0.5866853]
[1771824244526,0.57796269,1867.8,1867.3,0.5866853]
[1771824245927,1.83453821,1867.5,1866.9,0.59282112]
[1771824246127,0.57710766,1867.4,1866.9,0.59282112]
[1771824257638,0.56934349,1867.7,1866.9,0.59282112]
[1771824257839,9.09537926,1867.6,1867.3,0.57851014]
[1771824258041,0.56934349,1867.6,1867.3,0.57851014]
[1771824258235,0.56934349,1867.6,1867.0,0.57851014]
[1771824260141,1.16357391,1867.5,1867.0,0.57851014]
[1771824260345,0.5709439,1867.5,1867.0,0.57851014]
[1771824263545,4.7273293,1867.8,1867.0,0.57851014]
[1771824263847,0.57558398,1867.6,1867.0,0.57851014]
[1771824264045,0.59298577,1867.5,1867.0,0.57851014]
[1771824264246,0.57585688,1867.6,1867.0,0.57851014]
[1771824264448,8.53299175,1867.5,1867.0,0.57851014]
[1771824264646,0.57585688,1867.6,1867.0,0.57851014]
[1771824264846,8.53299175,1867.5,1867.0,0.57851014]
[1771824265145,0.57585688,1867.6,1867.0,0.57851014]
[1771824265345,8.53585024,1867.5,1867.0,0.57851014]
[1771824265547,0.57585688,1867.6,1867.0,0.57851014]
[1771824265743,8.53597715,1867.5,1867.0,0.57851014]
[1771824266043,0.57585688,1867.6,1867.0,0.57851014]
[1771824266244,8.53587786,1867.5,1867.0,0.57851014]
[1771824266444,0.57585688,1867.6,1867.0,0.57851014]
[1771824266640,8.5360224,1867.5,1867.0,0.57851014]
[1771824266843,0.57713728,1867.5,1867.0,0.57851014]
[1771824268450,0.57462412,1867.7,1867.0,0.57851014]
[1771824268650,8.53648862,1867.6,1867.0,0.57851014]
[1771824268846,0.59339248,1867.5,1867.0,0.57851014]
[1771824269050,0.57487454,1867.7,1867.0,0.57851014]
[1771824269252,4.7273293,1867.8,1867.0,0.57851014]
[1771824269253,8.53634609,1867.6,1867.0,0.57851014]
[1771824269548,0.84264454,1867.8,1867.0,0.57851014]
[1771824269749,9.10875893,1867.7,1867.0,0.57851014]
[1771824269946,0.5934002,1867.6,1867.0,0.57851014]
[1771824270142,0.57274215,1867.7,1867.0,0.57851014]
[1771824270344,1.16633427,1867.6,1867.0,0.57851014]
[1771824270640,0.57298821,1867.6,1867.0,0.57851014]
[1771824273847,0.57025146,1867.0,1866.1,0.57851014]
[1771824274052,9.10751451,1866.9,1866.1,0.57851014]
[1771824274249,0.57049269,1866.9,1866.1,0.57851014]
[1771824274750,0.57741708,1866.9,1866.1,0.58291714]
[1771824275050,0.8369678,1866.8,1866.1,0.58291714]
[1771824275250,0.8369678,1866.7,1866.1,0.58291714]
[1771824275547,0.8369678,1866.6,1866.1,0.58291714]
[1771824275746,0.8369678,1866.5,1866.1,0.58291714]
[1771824275946,0.57071791,1866.8,1866.1,0.58291714]
[1771824276147,0.83696812,1866.7,1866.1,0.58291714]
[1771824276355,0.83696812,1866.6,1866.1,0.58291714]
[1771824276652,0.83696812,1866.5,1866.1,0.58291714]
[1771824276850,0.57071791,1866.8,1866.1,0.58291714]
[1771824277047,0.83696791,1866.7,1866.1,0.58291714]
[1771824277255,0.83696791,1866.6,1866.1,0.58291714]
[1771824277449,0.83696791,1866.5,1866.1,0.58291714]
[1771824277650,0.57071791,1866.8,1866.1,0.58291714]
[1771824277849,0.83696933,1866.7,1866.1,0.58291714]
[1771824278050,0.83696933,1866.6,1866.1,0.58291714]
[1771824278251,0.57071791,1866.8,1866.1,0.58291714]
[1771824278457,0.83696948,1866.7,1866.1,0.58291714]
[1771824278753,0.83696948,1866.6,1866.1,0.58291714]
[1771824278953,0.57071791,1866.8,1866.1,0.58291714]
[1771824279153,0.83696951,1866.7,1866.1,0.58291714]
[1771824279353,0.83696951,1866.6,1866.1,0.58291714]
[1771824279656,0.57071791,1866.8,1866.1,0.58291714]
[1771824279856,0.83696946,1866.7,1866.1,0.58291714]
[1771824280055,0.83696946,1866.6,1866.1,0.58291714]
[1771824280246,0.57071791,1866.8,1866.1,0.004407]
[1771824280453,9.42836864,1866.7,1865.7,0.57851014]
[1771824280655,0.56591597,1866.5,1865.7,0.57851014]
[1771824280956,0.83699477,1866.4,1865.7,0.57851014]
[1771824281249,0.56591597,1866.5,1865.7,0.57851014]
[1771824281250,0.83699477,1866.3,1865.7,0.57851014]
[1771824281451,0.56591597,1866.5,1865.7,0.58397976]
[1771824281651,0.83711498,1866.4,1865.7,0.58397976]
[1771824281851,0.83711498,1866.3,1865.7,0.58397976]
[1771824282047,0.56591597,1866.5,1865.7,0.58397976]
[1771824282248,1.39564324,1866.4,1865.7,0.58397976]
[1771824282447,0.83711457,1866.3,1865.7,0.58397976]
[1771824282650,0.55851715,1866.6,1865.7,0.58397976]
[1771824282855,1.39562963,1866.5,1865.7,0.58397976]
[1771824283060,0.83711248,1866.4,1865.7,0.58397976]
[1771824283359,0.55851715,1866.5,1865.7,0.58397976]
[1771824283558,0.83711108,1866.4,1865.7,0.58397976]
[1771824283857,0.83711103,1866.3,1865.7,0.58397976]
[1771824284051,0.55851715,1866.5,1865.7,0.58397976]
[1771824284252,0.83709532,1866.4,1865.7,0.58397976]
[1771824284454,0.83709532,1866.3,1865.7,0.58397976]
[1771824284654,0.55851715,1866.5,1865.7,0.58397976]
[1771824284855,0.83709544,1866.4,1865.7,0.58397976]
[1771824285056,0.56253866,1866.8,1865.7,0.58397976]
[1771824285256,1.39962198,1866.7,1865.7,0.58397976]
[1771824285456,0.83708332,1866.6,1865.7,0.58397976]
[1771824285658,1.39995285,1866.5,1865.7,0.58397976]
[1771824285856,0.56286953,1866.5,1865.7,0.58397976]
[1771824291863,1.42000869,1866.4,1865.7,0.58397976]
[1771824292062,0.58289397,1866.4,1865.7,0.58397976]
[1771824293554,0.83713426,1866.3,1865.7,0.58397976]
[1771824293759,0.59051385,1866.7,1865.7,0.58397976]
[1771824293959,0.59069347,1866.5,1865.7,0.58397976]
[1771824294161,0.83712196,1866.4,1865.7,0.58397976]
[1771824294365,0.59069347,1866.5,1865.7,0.58397976]
[1771824294665,1.42780829,1866.4,1865.7,0.58397976]
[1771824294964,0.59068804,1866.4,1865.7,0.58397976]
[1771824295765,0.83712304,1866.3,1865.7,0.58397976]
[1771824295965,0.59068804,1866.4,1865.7,0.58397976]
[1771824296166,0.83712317,1866.3,1865.7,0.58397976]
[1771824296369,0.59068804,1866.4,1865.7,0.58397976]
[1771824296569,0.83712328,1866.3,1865.7,0.58397976]
[1771824296762,0.59068804,1866.4,1865.7,0.58397976]
[1771824296964,0.83712317,1866.3,1865.7,0.58397976]
[1771824297163,0.59068804,1866.4,1865.7,0.58397976]
[1771824297364,0.83712269,1866.3,1865.7,0.58397976]
[1771824297560,0.59068804,1866.4,1865.7,0.58397976]
[1771824297766,0.83712256,1866.3,1865.7,0.58397976]
[1771824297968,0.59068804,1866.4,1865.7,0.58397976]
[1771824298169,0.83712256,1866.3,1865.7,0.58397976]
[1771824298371,0.59068804,1866.4,1865.7,0.58397976]
[1771824298570,0.83712261,1866.3,1865.7,0.58397976]
[1771824298775,0.59068804,1866.4,1865.7,0.58397976]
[1771824298976,0.83712275,1866.3,1865.7,0.58397976]
[1771824299273,0.59360174,1866.1,1865.7,0.58876411]
[1771824299578,0.59360174,1866.6,1865.8,0.58329449]
[1771824299771,0.59360174,1866.4,1865.8,0.58329449]
[1771824299971,1.43072697,1866.3,1865.8,0.58329449]
[1771824300171,0.83712371,1866.2,1865.8,0.58329449]
[1771824300372,0.59360174,1866.3,1865.8,0.58329449]
[1771824300574,0.83712371,1866.2,1865.8,0.58329449]
[1771824300775,0.59360174,1866.3,1865.8,0.58329449]
[1771824300975,0.83712329,1866.2,1865.8,0.58329449]
[1771824301177,0.59360174,1866.3,1865.8,0.58329449]
[1771824301379,0.83712308,1866.2,1865.8,0.58329449]
[1771824301578,0.59360174,1866.3,1865.8,0.58329449]
[1771824301877,0.83712338,1866.2,1865.8,0.58329449]
[1771824302071,0.59360174,1866.8,1866.0,0.58329449]
[1771824302273,0.83705285,1866.7,1866.0,0.58329449]
[1771824302473,0.83705285,1866.6,1866.0,0.58329449]
[1771824302680,0.59360174,1866.4,1865.7,0.85683411]
[1771824302876,0.83705285,1866.3,1865.7,0.58876411]
[1771824303081,0.83705285,1866.2,1865.7,0.58876411]
[1771824303378,0.488379,1866.1,1865.7,0.58876411]
[1771824303579,0.59360174,1866.5,1865.7,0.58876411]
[1771824303780,0.59360174,1866.5,1865.9,0.58329449]
[1771824308180,0.59360174,1866.8,1865.9,0.58329449]
[1771824308381,0.59360174,1866.6,1865.9,0.58329449]
[1771824310184,0.59360174,1866.6,1865.7,0.58876411]
[1771824310988,0.59360174,1866.6,1865.8,0.58329449]
[1771824311286,0.59360174,1866.5,1865.8,0.58329449]
[1771824312583,0.59360174,1866.3,1865.7,0.58876411]
[1771824312883,0.59360174,1866.3,1865.7,0.00546962]
[1771824313387,0.59360174,1866.1,1865.7,0.00546962]
[1771824314587,0.59360174,1865.7,1865.3,0.58329449]
[1771824315590,0.59360174,1865.7,1865.3,0.00550369]
[1771824315892,0.59360174,1865.5,1864.8,0.58329449]
[1771824316187,0.59360174,1866.0,1865.2,0.58329449]
[1771824316387,0.59360174,1865.8,1865.2,0.58329449]
[1771824316583,0.59360174,1865.6,1865.2,0.58329449]
[1771824316789,1.42774427,1865.5,1865.2,0.58964019]
[1771824316988,0.59360174,1865.5,1865.2,0.58964019]
[1771824317190,0.00694112,1865.6,1865.2,0.58964019]
[1771824317390,0.61618689,1865.6,1865.2,0.58964019]
[1771824317586,1.37224374,1865.5,1865.2,0.60211468]
[1771824317791,0.53853144,1865.3,1864.9,0.59576898]
[1771824318084,0.54561668,1865.6,1864.9,0.59576898]
[1771824318282,0.53867556,1865.4,1865.1,0.59576898]
[1771824318789,0.53867556,1865.4,1865.1,0.60148304]
[1771824321294,0.53995557,1865.5,1865.1,0.60148304]
[1771824321694,0.53995557,1865.5,1865.1,0.00571406]
[1771824321987,0.56098388,1865.4,1865.1,0.00571406]
[1771824322189,0.56098388,1865.4,1864.9,0.59576898]
[1771824322595,0.56097652,1865.2,1864.9,0.59576898]
[1771824323189,0.56097652,1865.2,1864.9,0.48510624]
[1771824323895,0.60898246,1865.0,1864.6,0.59576898]
[1771824324190,0.60898246,1864.8,1864.3,0.59576898]
[1771824324389,2.44727577,1864.9,1864.3,0.59576898]
[1771824324590,0.60898246,1864.8,1864.3,0.59576898]
[1771824324795,0.60898246,1864.8,1864.3,0.6021595]
[1771824325491,0.60898246,1865.2,1864.5,0.59576898]
[1771824325693,1.43922584,1865.1,1864.5,0.59576898]
[1771824325991,0.60898246,1865.1,1864.5,0.59576898]
[1771824330991,0.60898246,1864.9,1864.5,0.59576898]
[1771824332489,0.60898246,1864.9,1864.3,0.6021595]
[1771824332697,0.60898246,1864.4,1863.6,0.59576898]
[1771824332990,0.60898246,1863.8,1863.0,7.82676898]
[1771824333191,1.83829331,1863.6,1862.9,0.59576898]
[1771824333394,0.60898246,1863.8,1863.1,0.59576898]
[1771824333792,0.00681483,1863.8,1863.3,0.59576898]
[1771824333988,0.61579729,1863.8,1863.3,0.59576898]
[1771824334189,0.60898246,1863.7,1863.3,0.59576898]
[1771824334795,0.60898246,1863.5,1863.2,0.59576898]
[1771824335199,0.60898246,1863.5,1863.1,0.00438873]
[1771824336400,0.60898246,1863.5,1862.8,0.59576898]
[1771824337501,0.60898246,1863.5,1862.8,0.60218355]
[1771824340101,0.60898246,1863.7,1862.8,0.60218355]
[1771824340805,0.00681483,1863.8,1862.9,3.08476164]
[1771824341103,0.61579729,1863.8,1863.0,0.59576898]
[1771824342406,0.60898246,1864.0,1863.4,0.59576898]
[1771824343403,0.61402176,1864.0,1863.2,0.59576898]
[1771824347309,0.0050393,1864.0,1863.2,0.59576898]
[1771824347505,0.60550767,1864.0,1863.2,0.59576898]
[1771824353209,1.42387275,1863.9,1863.2,0.59576898]
[1771824353408,0.60046837,1863.9,1863.2,0.59576898]
[1771824356115,0.60046837,1863.7,1863.2,0.59576898]
[1771824357611,0.0050393,1864.0,1863.2,0.59576898]
[1771824357612,0.60550767,1864.0,1863.2,0.59576898]
[1771824357813,1.42520502,1863.9,1863.2,0.59576898]
[1771824358011,0.82473665,1863.8,1863.2,0.59576898]
[1771824358210,0.60046837,1863.9,1863.2,0.59576898]
[1771824358412,0.82523179,1863.8,1863.2,0.59576898]
[1771824358712,0.60046837,1863.9,1863.2,0.59576898]
[1771824358914,0.8252424,1863.8,1863.2,0.59576898]
[1771824359113,0.60046837,1863.9,1863.2,0.59576898]
[1771824359312,0.82582093,1863.8,1863.2,0.59576898]
[1771824359508,0.60046837,1863.9,1863.2,0.59576898]
[1771824359715,0.82582758,1863.8,1863.2,0.59576898]
[1771824359914,0.60046837,1863.9,1863.2,0.59576898]
[1771824360115,0.82582815,1863.8,1863.2,0.59576898]
[1771824360312,0.82582815,1863.7,1863.2,0.59576898]
[1771824360514,0.60046837,1863.9,1863.2,0.59576898]
[1771824360715,0.82642616,1863.8,1863.2,0.59576898]
[1771824360916,0.82642616,1863.7,1863.2,0.59576898]
[1771824361119,0.60046837,1863.9,1863.2,0.59576898]
[1771824361418,0.60046837,1863.7,1863.2,0.59576898]
[1771824361827,1.42771928,1863.6,1863.2,0.59576898]
[1771824362027,0.60046837,1863.6,1863.2,0.59576898]
[1771824362329,0.82840648,1863.5,1863.2,0.59576898]
[1771824362530,0.60046837,1863.6,1863.2,0.59576898]
[1771824362729,0.82840648,1863.5,1863.2,0.59576898]
[1771824362926,0.60046837,1863.6,1863.2,0.59576898]
[1771824363125,0.82840222,1863.5,1863.2,0.59576898]
[1771824363322,0.0050393,1864.0,1862.8,0.00641457]
[1771824363323,0.60046837,1863.3,1862.8,0.00641457]
[1771824363521,0.82912712,1863.4,1862.8,0.56467346]
[1771824363522,0.82912712,1863.2,1862.8,0.56467346]
[1771824363726,0.60046837,1863.4,1862.8,0.56467346]
[1771824363926,0.60046837,1863.8,1862.8,0.56467346]
[1771824364124,0.60046837,1863.6,1862.8,0.56467346]
[1771824373432,0.60046837,1863.4,1862.3,0.55825889]
[1771824373730,0.60046837,1863.2,1862.3,0.55825889]
[1771824374534,0.60046837,1863.2,1862.3,0.56461931]
[1771824375835,0.80361784,1863.1,1862.5,0.55825889]
[1771824376030,0.60046837,1863.2,1862.5,0.55825889]
[1771824376433,0.60046837,1863.8,1862.5,0.55825889]
[1771824376640,0.60046837,1863.6,1862.5,0.55825889]
[1771824376834,0.60046837,1863.4,1862.5,0.55825889]
[1771824377035,0.8035522,1863.3,1862.5,0.55825889]
[1771824377235,0.8035522,1863.2,1862.5,0.55825889]
[1771824377431,0.58096984,1863.3,1862.5,0.55825889]
[1771824377638,0.80346338,1863.2,1862.5,0.55825889]
[1771824377936,0.58096984,1863.3,1862.5,0.55825889]
[1771824378137,0.59816201,1863.2,1862.5,0.55825889]
[1771824379239,0.59816201,1863.9,1862.5,0.55825889]
[1771824379440,0.59816201,1863.7,1862.5,0.55825889]
[1771824379741,0.59816201,1863.5,1862.7,0.55623234]
[1771824379940,1.40159242,1863.4,1862.7,0.55623234]
[1771824380139,0.59816201,1863.4,1862.7,0.55623234]
[1771824381937,0.8035484,1863.3,1862.6,0.55623234]
[1771824382134,0.59816201,1863.4,1862.6,0.55623234]
[1771824386343,0.59816201,1863.4,1862.8,0.55623234]
[1771824387643,0.59816201,1863.2,1862.3,0.56259276]
[1771824387840,0.59816201,1863.0,1862.3,0.56259276]
[1771824393546,0.59816201,1862.8,1862.3,0.00636042]
[1771824393939,0.59816201,1862.8,1861.7,0.55623234]
[1771824394139,0.59816201,1862.6,1861.7,0.55623234]
[1771824394344,0.59816201,1862.5,1861.7,0.55623234]
[1771824394940,0.59816201,1862.5,1861.7,0.56306943]
[1771824395146,0.60288688,1862.5,1861.7,0.56306943]
[1771824403455,0.60288688,1862.5,1861.9,0.55623234]
[1771824421873,0.57903283,1863.0,1862.1,0.60625756]
[1771824422074,0.57903283,1862.8,1862.4,0.60625756]
[1771824422877,0.58350367,1862.8,1862.4,0.60625756]
[1771824423282,0.58350367,1862.8,1862.2,0.60625756]
[1771824424577,0.58350367,1862.8,1861.9,0.60625756]
[1771824424781,0.57903283,1862.6,1861.9,0.60625756]
[1771824427988,0.00447084,1862.8,1862.1,0.60625756]
[1771824428289,0.58350367,1862.8,1862.1,0.60625756]
[1771824428889,0.00447084,1862.8,1862.1,0.60625756]
[1771824429084,0.58350367,1862.8,1862.1,0.60625756]
[1771824438094,0.00447084,1862.8,1862.1,0.60625756]
[1771824438592,0.57195259,1862.8,1862.1,0.60625756]
[1771824445201,0.57195259,1862.8,1862.4,0.60996599]
[1771824448203,0.00447084,1862.8,1862.4,0.60996599]
[1771824448395,0.57195259,1862.8,1862.4,0.60996599]
[1771824449402,0.00447084,1862.8,1862.4,0.60996599]
[1771824451202,0.00447084,1862.8,1862.6,0.60996599]
[1771824451401,0.12523945,1862.9,1862.6,0.60996599]
[1771824451598,0.79490648,1862.8,1862.6,0.60996599]
[1771824451798,0.13877619,1863.1,1862.8,0.60996599]
[1771824452099,0.79492128,1863.0,1862.8,0.60996599]
[1771824452300,0.13877619,1863.1,1862.7,2.45421813]
[1771824452602,0.13877619,1863.1,1862.7,0.60996599]
[1771824453298,0.1448919,1863.1,1862.7,0.60996599]
[1771824454302,0.17126078,1863.1,1862.7,0.60996599]
[1771824456702,0.17126078,1863.1,1862.8,0.60996599]
[1771824458604,0.00611571,1863.1,1862.8,0.60996599]
[1771824458808,0.16329913,1863.3,1862.9,1.84425214]
[1771824459012,0.16329913,1863.3,1863.0,0.60996599]
[1771824459711,0.16946616,1863.3,1863.0,0.60996599]
[1771824459916,0.16946616,1863.3,1862.9,0.60996599]
[1771824461608,0.16946616,1863.3,1863.0,0.60996599]
[1771824462512,0.00616703,1863.3,1863.0,0.60996599]
[1771824462713,0.17125597,1863.5,1863.0,0.60996599]
[1771824463609,0.17818954,1863.5,1863.0,0.60996599]
[1771824464311,0.17026971,1863.4,1863.0,0.60996599]
[1771824466014,0.00693357,1863.5,1863.0,0.60996599]
[1771824466315,0.17058534,1863.6,1863.3,0.60996599]
[1771824466511,6.467,1863.8,1863.3,0.60996599]
[1771824466812,3.68850428,1863.4,1862.2,0.60998267]
[1771824467015,1.84425214,1862.9,1862.2,0.60998267]
[1771824467312,0.0057676,1862.9,1862.2,0.61650955]
[1771824467612,0.0020453,1862.8,1862.2,0.61650955]
[1771824467813,0.0020453,1862.8,1862.2,2.46076169]
[1771824468012,0.0020453,1862.8,1862.3,0.60902092]
[1771824470715,0.0057676,1862.9,1862.3,0.60902092]
[1771824470918,0.03261647,1862.9,1862.3,0.60902092]
[1771824471214,0.0057676,1862.9,1862.3,0.60902092]
[1771824471416,0.03261647,1862.9,1862.3,0.60902092]
[1771824472015,0.02994808,1862.9,1862.5,0.60243036]
[1771824472916,0.0057676,1862.9,1862.5,0.60243036]
[1771824478915,1.84889145,1862.6,1862.2,0.61425079]
[1771824479215,0.00463931,1862.6,1862.2,0.61425079]
[1771824479609,1.84425214,1862.7,1862.2,0.61425079]
[1771824479814,0.78099211,1862.6,1862.2,0.61425079]
[1771824480014,1.85001974,1862.9,1862.2,0.61425079]
[1771824480215,0.78099677,1862.8,1862.2,0.61425079]
[1771824480415,0.78099677,1862.7,1862.2,0.61425079]
[1771824480718,0.59518506,1862.4,1862.0,0.60243036]
[1771824481514,0.59518506,1862.6,1862.0,0.60243036]
[1771824481716,0.59518506,1862.6,1862.0,0.60676005]
[1771824487818,2.4452048,1862.9,1862.0,0.60676005]
[1771824488024,1.37487051,1862.8,1862.0,0.60676005]
[1771824488228,0.59518506,1862.7,1862.0,0.60676005]
[1771824490126,0.59518506,1862.7,1862.2,0.60243036]
[1771824491027,0.59518506,1862.8,1862.2,0.60243036]
[1771824493425,1.375405,1862.7,1862.2,0.60243036]
[1771824493720,0.59518506,1862.7,1862.2,0.60243036]
[1771824494126,0.0057676,1862.9,1862.2,0.60243036]
[1771824494327,1.37540573,1862.8,1862.2,0.60243036]
[1771824494627,1.37540573,1862.7,1862.2,0.60243036]
[1771824494929,0.59518506,1862.7,1862.2,0.60243036]
[1771824496532,0.78171693,1862.6,1862.2,0.60243036]
[1771824496836,0.59518506,1862.7,1862.2,0.60243036]
[1771824497133,0.7817518,1862.6,1862.2,0.60243036]
[1771824497329,0.59518506,1862.7,1862.2,0.60243036]
[1771824497527,0.78177124,1862.6,1862.2,0.60243036]
[1771824497729,0.59518506,1862.7,1862.2,0.60243036]
[1771824497928,0.78177367,1862.6,1862.2,0.60243036]
[1771824498129,0.59518506,1862.7,1862.2,0.60243036]
[1771824498933,0.78180912,1862.6,1862.2,0.60243036]
[1771824499134,0.56825616,1862.8,1862.2,0.60243036]
[1771824499328,1.35005838,1862.7,1862.2,0.60243036]
[1771824499632,0.78180222,1862.6,1862.2,0.60243036]
[1771824499833,0.56825616,1862.7,1862.2,0.60243036]
[1771824500028,0.7818291,1862.6,1862.2,0.60243036]
[1771824500230,0.0057676,1862.9,1862.3,0.57698028]
[1771824501033,1.35008975,1862.8,1862.3,0.57698028]
[1771824501232,0.56825616,1862.8,1862.3,0.57698028]
[1771824501935,0.56825616,1862.4,1861.6,0.57698028]
[1771824502126,0.56825616,1862.2,1861.6,0.57698028]
[1771824502330,1.3499968,1862.1,1861.6,0.57698028]
[1771824502528,0.56825616,1862.1,1861.6,0.57698028]
[1771824502730,0.56825616,1862.6,1861.6,0.57698028]
[1771824502930,0.56825616,1862.4,1861.6,0.57698028]
[1771824503228,0.56825616,1862.2,1861.6,0.58288055]
[1771824503429,0.56825616,1862.1,1861.6,0.58288055]
[1771824505230,1.84462547,1862.6,1861.6,0.58288055]
[1771824505231,0.56825616,1862.6,1861.6,0.58288055]
[1771824505430,0.56825616,1862.4,1861.6,0.58288055]
[1771824505631,0.78083786,1862.3,1861.6,0.58288055]
[1771824505836,0.56825616,1862.4,1861.6,0.58288055]
[1771824506039,0.78078071,1862.3,1861.6,0.58288055]
[1771824506334,0.56825616,1862.4,1861.6,0.58288055]
[1771824506535,0.78081894,1862.3,1861.6,0.58288055]
[1771824506735,0.56825616,1862.4,1861.6,0.58288055]
[1771824511950,0.78101202,1862.3,1861.6,0.58288055]
[1771824512245,0.56825616,1862.4,1861.6,0.58288055]
[1771824512445,0.78098222,1862.3,1861.6,0.58288055]
[1771824512648,0.56825616,1862.4,1861.6,0.58288055]
[1771824512846,1.34923838,1862.3,1861.6,0.58288055]
[1771824513044,0.56825616,1862.3,1861.6,0.58288055]
[1771824514548,0.0057676,1862.9,1861.6,0.58288055]
[1771824514751,0.56825616,1862.7,1861.7,0.57698028]
[1771824514951,0.56825616,1862.5,1861.8,1.84462547]
[1771824515147,0.56825616,1862.5,1861.9,0.57698028]
[1771824517548,0.0057676,1862.9,1861.6,0.27456027]
[1771824517549,0.56825616,1862.8,1862.2,0.57698028]
[1771824517750,0.56825616,1862.6,1862.2,0.57698028]
[1771824518555,0.56825616,1862.7,1862.2,0.57698028]
[1771824519057,0.57402376,1862.9,1862.3,0.57698028]
[1771824522155,0.0057676,1862.9,1862.3,0.57698028]
[1771824522860,0.57402376,1862.9,1862.3,0.57698028]
[1771824524058,0.0057676,1862.9,1862.3,0.57698028]
[1771824525862,0.56825616,1863.3,1862.8,0.57698028]
[1771824526958,0.57294426,1863.3,1862.8,0.57698028]
[1771824530556,0.0046881,1863.3,1862.8,0.57698028]
[1771824534069,0.59764816,1863.6,1862.8,0.57698028]
[1771824535062,0.60439736,1863.6,1862.8,0.57698028]
[1771824544678,0.59750246,1863.7,1863.1,0.59459178]
[1771824545177,0.59750246,1863.8,1863.1,0.59459178]
[1771824545781,0.6021721,1863.8,1863.1,0.60029713]
[1771824548279,0.00466964,1863.8,1863.1,0.60029713]
[1771824549582,0.6023178,1863.8,1863.1,0.60029713]
[1771824553287,0.78120295,1863.7,1863.1,0.60029713]
[1771824553484,0.6023178,1863.8,1863.1,0.60029713]
[1771824553680,0.7812042,1863.7,1863.1,0.60029713]
[1771824553886,0.6023178,1863.8,1863.1,0.60029713]
[1771824554084,0.7812042,1863.7,1863.1,0.60029713]
[1771824554285,0.6023178,1863.8,1863.1,0.60029713]
[1771824554484,0.78145013,1863.7,1863.1,0.60029713]
[1771824554784,0.6023178,1863.8,1863.1,0.60029713]
[1771824557389,0.6023178,1863.8,1863.5,0.56952133]
[1771824562588,0.55214512,1864.0,1863.5,0.56952133]
[1771824562794,6.467,1864.4,1863.7,1.84222292]
[1771824562984,8.30922292,1864.6,1863.7,0.61026516]
[1771824563188,8.09571506,1864.5,1863.7,0.61026516]
[1771824563389,0.00335457,1864.3,1863.7,0.61026516]
[1771824563588,0.00335457,1864.3,1863.7,2.45248808]
[1771824563792,0.00335457,1864.2,1863.8,0.60858787]
[1771824563992,0.00650932,1864.3,1863.8,0.60858787]
[1771824564185,0.00650932,1864.3,1864.0,0.61026516]
[1771824565087,6.467,1864.6,1864.0,0.61026516]
[1771824565287,8.30922292,1864.8,1864.0,0.61026516]
[1771824565487,0.00752131,1864.6,1864.0,0.61026516]
[1771824566089,0.00752131,1864.5,1864.0,0.61026516]
[1771824567690,0.00752131,1864.5,1864.0,2.45248808]
[1771824567891,0.00752131,1864.5,1864.1,0.60919264]
[1771824568295,0.00651702,1864.6,1864.1,0.60919264]
[1771824568987,0.00437197,1864.6,1864.1,0.60919264]
[1771824570297,0.00437197,1864.6,1864.2,1.84222292]
[1771824570595,0.0047994,1865.1,1864.5,0.60786546]
[1771824571589,0.01000268,1865.1,1864.5,0.61311203]
[1771824572597,0.01014227,1865.1,1864.7,0.60779566]
[1771824572998,0.00520328,1865.1,1864.7,0.60779566]
[1771824575504,0.00521446,1864.8,1864.5,0.6129045]
[1771824575902,0.00521446,1864.9,1864.5,0.6129045]
[1771824579397,0.09332323,1865.8,1865.0,0.60287379]
[1771824579601,0.55214512,1866.0,1865.4,0.60287379]
[1771824580005,0.55214512,1866.0,1864.9,0.26818]
[1771824580006,0.55214512,1866.0,1865.6,0.60287379]
[1771824580204,0.55214512,1866.1,1865.6,0.60287379]
[1771824580505,0.55786997,1866.1,1865.6,0.60287379]
[1771824580896,0.55214512,1866.3,1865.8,0.60287379]
[1771824581499,0.55214512,1866.7,1865.8,0.60287379]
[1771824581906,0.55830673,1866.7,1865.8,0.60287379]
[1771824601417,0.00616161,1866.7,1866.0,0.55362963]
[1771824601612,0.60384396,1867.0,1866.2,0.55362963]
[1771824601819,0.60384396,1867.1,1866.2,0.55362963]
[1771824602306,0.60384396,1866.9,1866.2,0.55362963]
[1771824602513,0.00492608,1866.9,1866.2,0.55996752]
[1771824602707,0.00492608,1866.9,1866.2,3.04056851]
[1771824602913,0.00492608,1866.9,1866.3,0.55362963]
[1771824603116,0.60384396,1867.2,1866.3,0.55362963]
[1771824603312,0.60384396,1867.2,1866.5,0.55362963]